Cogmind - Beta 10.2 @@@ ROGUE MODE // 2021.07.13 @ 21:07:02 Player: User Result: Destroyed by Y-45 Defender with Beam Rifle Performance ------------- Evolutions (1) 500 Regions Visited (3) 600 Robots Destroyed (45) 225 Value Destroyed (1196) 1196 Prototype IDs (4) 80 Alien Tech Used (0) 0 Bonus (134) 134 TOTAL SCORE: 2735 Bonus ------- Follower Combat Kills 152 Friendly Fire -18 Cogmind --------- Core Integrity 0/400 Matter 290/300 Energy 409/415 System Corruption 0% Temperature Cool (9) Movement Walking (270) Ox5 Location -9/Materials Parts ------- > --- POWER (2) -------- Ion Engine Improved Ion Engine > --- PROPULSION (2) --- Aluminum Leg > --- UTILITY (3) ------ High-capacity Storage Unit Utility Shielding Hardened Light Armor Plating > --- WEAPON (2) ------- Beam Rifle Heavy Assault Rifle > --- INVENTORY (12) --- Improved Ion Engine Light Treads Light Treads Heat Sink Improved Heat Sink Weight Redist. System Signal Interpreter Hardened Light Armor Plating Hacking Suite Improved Medium Laser Peak State ------------ > --- POWER ------------ Light Ion Engine Light Nuclear Core > --- PROPULSION ------- Improved Aluminum Leg Improved Aluminum Leg > --- UTILITY ---------- High-capacity Storage Unit Power Shielding Utility Shielding > --- WEAPON ----------- Small Laser Katana > --- INVENTORY -------- Ion Engine Aluminum Leg Improved Heat Sink Small Storage Unit Weight Redist. System Signal Interpreter Mining Claw [Rating: 16] Favorites ----------- Power Ion Engine Engine Ion Engine Power Core Light Nuclear Core Propulsion Aluminum Leg Leg Aluminum Leg Utility High-capacity Storage Unit Device High-powered Tractor Beam Storage High-capacity Storage Unit Protection Power Shielding Weapon Heavy Assault Rifle Energy Gun EM Pulse Gun Ballistic Gun Heavy Assault Rifle Slashing Weapon Katana Build | -11 -10 -10 -9 ------- Run | Scr Mat Min Mat Slots Evolved 2 | . . . 2 Power 1 | . . . 1 Propulsion . | . . . . Utility 1 | . . . 1 Weapon . | . . . . Parts Attached 44 | 6 7 5 26 Power 9 | 1 . 2 6 Engine 8 | 1 . 2 5 Core 1 | . . . 1 Reactor . | . . . . Propulsion 11 | 2 2 1 6 Treads . | . . . . Leg 11 | 2 2 1 6 Wheel . | . . . . Hover . | . . . . Flight . | . . . . Utility 7 | 1 3 . 3 Device 1 | . 1 . . Storage 2 | 1 1 . . Processor . | . . . . Hackware . | . . . . Protection 4 | . 1 . 3 Artifact . | . . . . Weapon 17 | 2 2 2 11 Energy Gun 10 | 2 . 2 6 Energy Cannon . | . . . . Ballistic Gun 5 | . 2 . 3 Ballistic Cannon . | . . . . Launcher . | . . . . Special Weapon . | . . . . Impact Weapon . | . . . . Slashing Weapon 2 | . . . 2 Piercing Weapon . | . . . . Special Melee Weapon . | . . . . Unidentified Prototypes 1 | . . . 1 Parts Lost 30 | . 5 4 21 Power 7 | . 1 1 5 Propulsion 8 | . 1 1 6 Utility 3 | . 1 . 2 Weapon 12 | . 2 2 8 Highest Loss Streak 7 | . 3 3 7 Average Slot Usage (%) 91 | . 91 99 86 Engine 12 | . 10 13 13 Leg 24 | . 27 27 20 Storage 12 | . 14 14 11 Protection 15 | . 6 14 20 Energy Gun 6 | . 8 5 5 Ballistic Gun 12 | . 18 21 4 Slashing Weapon 4 | . . . 9 Naked Turns . | . . . . Heaviest Build 55 | 13 44 44 55 Greatest Support 26 | 20 20 20 26 Greatest Overweight (x) 11 | . 2 3 11 Average Overweight (x) 1 | . . 2 1 Largest Inventory Capacity 12 | 6 12 12 12 Average Capacity 11 | 5 8 12 12 Most Carried 12 | 4 11 12 12 Average Carried 9 | 1 6 10 9 Final Capacity 12 | 6 12 12 12 Final Carried 11 | 2 11 10 10 Class Distribution -------------------- 57% | Mutant 42% | Scavenger-Mutant Dominant Class ---------------- Mutant | -10/Materials Mutant | -10/Mines Scavenger-Mutant | -9/Materials Resources | -11 -10 -10 -9 ----------- Run | Scr Mat Min Mat Matter Collected 1060 | 231 348 114 367 Remotely 39 | . 39 . . Salvage Created 1851 | . 728 195 928 Parts 112 | . 53 9 50 Haulers Intercepted 2 | . 2 . . Recyclers Shooed 4 | . 2 . 2 Parts Field Recycled . | . . . . Retrieved Matter . | . . . . Parts Self-Destructed . | . . . . Prevented . | . . . . Kills | -11 -10 -10 -9 ------- Run | Scr Mat Min Mat Combat Hostiles Destroyed 31 | . 14 2 15 Melee 7 | . . . 7 Guns 23 | . 13 2 8 Classes Destroyed 10 | . 7 . 3 Builder 1 | . . . 1 Tunneler 1 | . 1 . . Hauler 2 | . 2 . . Recycler 5 | . 1 1 3 Operator 2 | . 1 . 1 Watcher 3 | . 2 . 1 Swarmer 5 | . 3 . 2 Grunt 20 | . 11 2 7 Brawler 1 | . . . 1 Sentry 5 | . . . 5 Best Kill Streak 6 | . 6 1 5 Combat Bots Only 5 | . 3 1 5 Max Kills in Single Turn 2 | . 2 1 1 Gunslinging 1 | . 1 . . Exploded . | . . . . Melee 1 | . . . 1 Uniques/NPCs Destroyed . | . . . . Combat | -11 -10 -10 -9 -------- Run | Scr Mat Min Mat Damage Taken 3227 | . 819 356 2052 Core 644 | . 159 85 400 Absorbed by Shields . | . . . . Core Remaining (%) 51 | 100 . 2 . Volleys Fired 147 | . 60 14 73 Largest 2 | . 2 2 2 Hottest 130 | . 80 88 130 Shots Fired 228 | . 118 24 86 Gun 228 | . 118 24 86 Cannon . | . . . . Launcher . | . . . . Special . | . . . . Kinetic 141 | . 92 21 28 Thermal 61 | . . 3 58 Explosive . | . . . . Electromagnetic 26 | . 26 . . Robot Hit Streak 14 | . 14 7 10 Robot Miss Streak 7 | . 5 2 7 Penetration Max . | . . . . Secondary Targets 4 | . 3 . 1 Max Gunslinging Chain 1 | . 1 . 1 Shots Hit Robots 178 | . 72 17 89 Core Hits 66 | . 28 6 32 Critical Hits . | . . . . Critical Kills . | . . . . Critical Parts Destroyed . | . . . . Melee Attacks 44 | . . . 44 Impact . | . . . . Slashing 44 | . . . 44 Piercing . | . . . . Sneak Attacks 6 | . . . 6 Combat Hostiles . | . . . . Follow-up Attacks . | . . . . Damage Inflicted 3968 | . 1425 234 2309 Guns 2146 | . 1077 227 842 Cannons . | . . . . Explosions 327 | . 327 . . Melee 1444 | . . . 1444 Ramming 51 | . 21 7 23 Kinetic 1330 | . 890 175 265 Thermal 629 | . . 52 577 Explosive 327 | . 327 . . Electromagnetic 187 | . 187 . . Impact . | . . . . Slashing 1444 | . . . 1444 Piercing . | . . . . Highest Corruption . | . . . . Average Corruption . | . . . . Corruption Purged . | . . . . Overload Shots . | . . . . Overflow Damage 273 | . 42 . 231 Projectiles . | . . . . Explosions 42 | . 42 . . Melee 231 | . . . 231 Knockbacks . | . . . . Impact . | . . . . Kinetic . | . . . . Secondary . | . . . . Self-Inflicted Damage 17 | . 9 . 8 Shots . | . . . . Rammed 5 | . 2 . 3 Targets Rammed 8 | . 3 1 4 Kicked 3 | . 1 1 1 Crushed . | . . . . Highest Temperature 508 | . 210 60 508 Average Temperature 89 | . 60 14 119 Received Heat Transfer 1242 | . 375 207 660 Effects 8 | . . . 8 Shutdowns 2 | . . . 2 Energy Bleed 1 | . . . 1 Interference 1 | . . . 1 Matter Decay 1 | . . . 1 Short Circuit 1 | . . . 1 Damage (minor) 1 | . . . 1 Damage (core) 1 | . . . 1 Siege Activations . | . . . . Robots Corrupted 1 | . 1 . . Combat Hostiles 1 | . 1 . . Parts Fried 2 | . 2 . . Impact Corruptions . | . . . . Robots Melted . | . . . . Combat Hostiles . | . . . . Parts Melted 2 | . . . 2 Heat Transferred 1520 | . . 111 1409 Parts Sabotaged . | . . . . Parts Stolen . | . . . . Parts Stripped . | . . . . Power Chain Reactions . | . . . . Missiles Intercepted . | . . . . Alert | -11 -10 -10 -9 ------- Run | Scr Mat Min Mat Peak Influence 334 | . 334 134 268 Initial 109 | . . 109 27 Average 105 | . 165 84 95 Maximum Alert Level 1 | . 1 . 1 Low Security (%) 89 | 100 62 100 95 Level 1 10 | . 37 . 4 Level 2 . | . . . . Level 3 . | . . . . Level 4 . | . . . . Level 5 . | . . . . High Security . | . . . . Max Security . | . . . . Squads Dispatched 6 | . 3 . 3 Investigation 1 | . 1 . . Extermination . | . . . . Reinforcement 5 | . 2 . 3 Assault . | . . . . Garrison . | . . . . Intercept . | . . . . Construction Impeded . | . . . . Haulers Reinforced . | . . . . Stealth | -11 -10 -10 -9 --------- Run | Scr Mat Min Mat Distress Signals 2 | . 1 . 1 Communications Jammed . | . . . . Distress Signals . | . . . . Times Spotted 62 | . 20 6 36 Peak Tracking Total 5 | . 4 2 5 Tactical Retreats 5 | . 1 . 4 Traps | -11 -10 -10 -9 ------- Run | Scr Mat Min Mat Traps Triggered . | . . . . Indirectly . | . . . . Trap Hack Attempts . | . . . . Triggered . | . . . . Disarmed . | . . . . Reprogrammed . | . . . . Reused . | . . . . Traps Extracted . | . . . . Installed . | . . . . Triggered . | . . . . Machines | -11 -10 -10 -9 ---------- Run | Scr Mat Min Mat Machines Disabled 4 | . 4 . . Max in Single Turn 1 | . 1 . . Machines Sabotaged . | . . . . Garrisons Compromised . | . . . . Overloaded Fab Kills . | . . . . Fab Network Shutdowns . | . . . . Hacking | -11 -10 -10 -9 --------- Run | Scr Mat Min Mat Machines Accessed 6 | . 3 . 3 Terminals 4 | . 1 . 3 Fabricators . | . . . . Repair Stations . | . . . . Recycling Units 2 | . 2 . . Scanalyzers . | . . . . Garrison Access . | . . . . Total Hacks 10 | . 7 . 3 Successful 5 | . 2 . 3 Failed 5 | . 5 . . Catastrophic . | . . . . Database Lockouts . | . . . . Manual . | . . . . Terminals 6 | . 3 . 3 Fabricators . | . . . . Repair Stations . | . . . . Recycling Units 4 | . 4 . . Scanalyzers . | . . . . Garrison Access . | . . . . Terminal Hacks 3 | . . . 3 Robot Analysis 1 | . . . 1 Prototype ID Bank 1 | . . . 1 Alert Level 1 | . . . 1 Fabricator Hacks . | . . . . Repair Station Hacks . | . . . . Recycling Unit Hacks 2 | . 2 . . Retrieve Components 2 | . 2 . . Scanalyzer . | . . . . Garrison Access Hacks . | . . . . Unauthorized Hacks . | . . . . Terminals . | . . . . Fabricators . | . . . . Repair Stations . | . . . . Recycling Units . | . . . . Scanalyzers . | . . . . Garrison Access . | . . . . Data Cores Recovered . | . . . . Used . | . . . . Hacking Detections 4 | . 2 . 2 Full Trace Events 1 | . 1 . . Feedback Events . | . . . . Feedback Blocked . | . . . . Robot Schematics Acquired . | . . . . Robots Built . | . . . . Matter . | . . . . Time . | . . . . Total Robot Build Rating . | . . . . Part Schematics Acquired . | . . . . Parts Built . | . . . . Matter . | . . . . Time . | . . . . Total Part Build Rating . | . . . . Parts Repaired . | . . . . Time . | . . . . Parts Recycled . | . . . . Recycled Matter . | . . . . Retrieved Matter . | . . . . Retrieved Components 12 | . 12 . . Parts Scanalyzed . | . . . . Part Schematics Acquired . | . . . . Parts Damaged . | . . . . Bothacking | -11 -10 -10 -9 ------------ Run | Scr Mat Min Mat Used RIF Installer . | . . . . Robots Hacked . | . . . . Non-combat . | . . . . Combat . | . . . . Robot Hacks Applied . | . . . . Relay Couplers Released . | . . . . Robots Rewired . | . . . . Allies Hacked . | . . . . Hacks Repelled . | . . . . Allies | -11 -10 -10 -9 -------- Run | Scr Mat Min Mat Total Allies 3 | . . 3 . Largest Group 3 | . . 3 2 Highest-Rated Group 40 | . . 40 32 Highest-Rated Ally 16 | . . 16 16 Total Orders . | . . . . Ally Attacks 27 | . . 17 10 Total Damage 297 | . . 223 74 Kills 6 | . . 3 3 Allies Corrupted . | . . . . Allies Melted . | . . . . Intel | -11 -10 -10 -9 ------- Run | Scr Mat Min Mat Robot Analysis Total 1 | . . . 1 Derelict Logs Recovered 1 | . . 1 . Drone Launches . | . . . . Drone Recoveries . | . . . . Exploration | -11 -10 -10 -9 ------------- Run | Scr Mat Min Mat Turns Passed 2725 | 69 598 797 1261 Spaces Moved 1280 | 55 291 416 518 Core 15 | 14 . . 1 Treads . | . . . . Legs 1265 | 41 291 416 517 Wheels . | . . . . Hover . | . . . . Flight . | . . . . Fastest Speed 50 | 50 120 180 150 Average Speed 164 | 102 134 180 175 Slowest Speed 600 | 120 180 210 600 Overloaded Moves . | . . . . Propulsion Burnouts . | . . . . Robots Hopped . | . . . . Cave-ins Triggered . | . . . . Exploration Rate (%) 48 | 4 56 96 38 Regions Visited 3 Branch Regions 1 Pre-discovered Areas 1 | . . 1 . Known Exits Taken . | . . . . Unknown Exits Taken 3 | 1 1 1 . Scrap Searched 1 | . . 1 . Spaces Dug . | . . . . Terrain Destroyed 5 | . 5 . . Melee . | . . . . Projectile . | . . . . AOE 5 | . 5 . . Terrain Rammed . | . . . . Walls Destroyed . | . . . . Machines Disabled . | . . . . Actions | -11 -10 -10 -9 --------- Run | Scr Mat Min Mat Total 1606 | 68 378 439 721 Wait 22 | . . . 22 Move 1277 | 54 290 415 518 Hop . | . . . . Pick Up 56 | 8 16 4 28 Fast Attach . | . . . . Attach 38 | 6 5 5 22 Detach . | . . . . Swap 6 | . 2 . 4 Drop 8 | . 2 . 6 Fire 147 | . 60 14 73 Melee 44 | . . . 44 Ram . | . . . . Kick 8 | . 3 1 4 Crush . | . . . . Escape Stasis . | . . . . Rewire . | . . . . Trap . | . . . . Miscellaneous . | . . . . Route ------- -11/Scrapyard -10/Materials (discovered 3 exits: *Mat / [*Min x2]) -10/Mines (discovered 2 exits: *Mat x2) -9/Materials History --------- Turn | Location | Event 2 | -11/Scrapyard | Discovered new exit (range 16) 70 | -11/Scrapyard | Entered Materials 286 | -10/Materials | Lost 3 parts (1u2w) 308 | -10/Materials | Build established: Mutant 329 | -10/Materials | Discovered new exit (range 14) 415 | -10/Materials | Discovered new exit (range 13) 418 | -10/Materials | Core integrity fell below 50% 659 | -10/Materials | Discovered new exit (range 6) 668 | -10/Materials | Entered Mines 778 | -10/Mines | Met a Derelict bent on vengeance 969 | -10/Mines | Assisted by bots powering up and referring to "LRC-V3" 1075 | -10/Mines | Discovered new exit (range 9) 1192 | -10/Mines | Learned location of Storage (-8) 1428 | -10/Mines | Discovered new exit (range 6) 1439 | -10/Mines | Core integrity fell below 20% 1464 | -10/Mines | Build established: Scavenger-Mutant 1465 | -10/Mines | Entered Materials 1465 | -9/Materials | Accompanied by 2 allies 1465 | -9/Materials | Evolved 2 slots: Power x1, Utility x1 1466 | -9/Materials | Lost 3 parts (1p1n1w) 1633 | -9/Materials | Lost 7 parts (1p2n4w) 1820 | -9/Materials | Core integrity fell below 50% 1847 | -9/Materials | Lost 4 parts (2p1n1w) 2386 | -9/Materials | Lost 4 parts (2p1n1u) 2625 | -9/Materials | Core integrity fell below 20% 2644 | -9/Materials | Build established: Mutant 2726 | -9/Materials | Destroyed by Y-45 Defender with Beam Rifle Last Messages --------------- K-01 Serf collects debris. O-16 Technician: "IFF HANDSHAKE FAILED. SECURING TERMINAL." Acquired Imp. Medium Laser. Acquired Imp. Ion Engine. K-01 Serf collects debris. Acquired 30 matter. K-01 Serf collects debris. Acquired Lgt. Treads. ALERT: Hostiles spotted, dispatching reinforcements to Terminal M005. K-01 Serf collects debris. Acquired Lgt. Treads. K-01 Serf collects debris. Autogun destroyed. Katana destroyed. Kicked G-34 Mercenary out of the way. M-13 Machinist fits Backup Power I on T-07 Excavator. Slammed into G-34 Mercenary. Aluminum Leg destroyed. Acquired 5 matter. Map ----- +----------------------------------------------------+ | % #?????# #?????????????????????????????????? | | #?????# #########?????????????????????????? | | % #?????# ## #?????????????????????????? | | """ #?????# ## """ #?????????????????????????? | | """ #?????# ## "T" #?????????????????????????? | | """ #??#### ## #?????????????????????????? | | +######## # #?????????????????????????? | | # |#??###/#??????????????????? | | + #?? ??????????????????? | | #%[""" #?# ???????????????????? | | ####### # """ #?# ???????????????????? | | #########+###* """ #?# #???????????????????? | | # #?# """ #?# #???????????????????? | | + #?# """ #?# #???????????????????? | | # #?# #?# #???????????????????? | | # #?### ####?# #???????????????????? | | ###########????##????# #???????????????????? | | #???????????????????## ##??????????????????? | | #???????????????????# #??????????????????? | | #???????????????????# #??????????????????? | | ##################### #??????????????????? | | !*%!% % #??????????????????? | | ############## #??????????????????? | | #???????########+######???????????????? | | ##########???????# %% #???????????????? | | ?????????????????# g@g #???????????????? | | ?????????????????# #???????????????? | | ?????????????????# m #???????????????? | | ?????????????????# #???????????????? | | ?????????????????# #???????????????? | | ?????????????????###########Y###???????????????? | | ??????????????????????????? t ?????????????????? | | ??????????????????????????? ????????????????? | | ??????????????????????????# ???????????????? | | ??????????????????????????# ###???????????????? | | ??????????????????????????+ #?????????????????? | | ??????????????????????????# #?????????????????? | | ??????????????????????????# #?????????????????? | | ??????????????????????????# ??????????????????? | | ??????????????????????????# ??????????????????? | | ??????????????????????????# ??????????????????? | | ??????????????????????????# ??????????????????? | | ??????????????????????????? ??????????????????? | | ??????????????????????????? ??????????????????? | | ??????????????????????????? ??????????????????? | | ???????????????????????????????????????????????? | | ???????????????????????????????????????????????? | | ???????????????????????????????????????????????? | | ???????????????????????????????????????????????? | | ???????????????????????????????????????????????? | +----------------------------------------------------+ Best States ------------- Heat Dissipation 28 Energy Generation 19 Energy Capacity 415 Matter Stores 300 Matter Capacity 300 Sight Range 16 Terrain Scan Density 10 Armor Coverage 150 Power Shielding 33 Utility Shielding 33 Evasion (%) 50 Item Schematics ----------------- None Robot Schematics ------------------ None Fabricated ------------ Nothing Alien Tech Used ----------------- None Achievements -------------- Close Call Challenges ------------ None Game ------ Seed BladeLightRigger Manual? 0 Play Time 00:28:00 Cumulative 5.2 hours Start 2021.07.13 @ 20:37:50 End 2021.07.13 @ 21:07:02 Sessions 1 Manual Loads 0 Difficulty Rogue Special Mode None Game No. 9 Rogue 9 Adventurer 0 Explorer 0 Win Type - Total 0 Types 0/0/0/0/0/0/0/0/0 Lore% 3 Gallery% 9 Achievement% 9 Wizard Run 0 Options --------- ASCII 0 Keyboard 0 Movement Mouse Keybinds 0 Fullscreen 1 Font 20/Terminus Map View 66x50 Tactical HUD 0 Map Filters NONE Filters NONE Steam 1 RUN: 4f55b08d-d749-43c1-b08f-49eccc017487